Cogmind - Beta 14 @@@ ROGUE MODE // 2024.09.18 @ 13:27:10 Player: Dull Result: Destroyed self with Grenade Launcher Performance ------------- Evolutions (0) 0 Regions Visited (3) 600 Robots Destroyed (44) 220 Value Destroyed (855) 855 Prototype IDs (0) 0 Alien Tech Used (0) 0 Bonus (-15) -15 TOTAL SCORE: 1660 Bonus ------- Friendly Fire -15 Cogmind --------- Core Integrity 0/250 Matter 247/300 Energy 90/250 System Corruption 0% Temperature Cool (0) Movement Treading (240) Ox1 Location -10/Subcaves Parts ------- > --- POWER (1) -------- Ion Engine > --- PROPULSION (2) --- Light Treads > --- UTILITY (2) ------ Large Storage Unit > --- WEAPON (2) ------- Grenade Launcher > --- INVENTORY (15) --- Ion Engine Light Treads Heat Sink Improved Terrain Scanner Hacking Suite Small Laser Assault Rifle Assault Rifle Assault Rifle Mining Laser Peak State ------------ > --- POWER ------------ Ion Engine > --- PROPULSION ------- Aluminum Leg Aluminum Leg > --- UTILITY ---------- Small Storage Unit Improved Terrain Scanner > --- WEAPON ----------- EM Pulse Gun Small Laser > --- INVENTORY -------- Light Ion Engine Light Treads Light Treads Wheel Wheel [Rating: 9] Favorites ----------- Power Ion Engine Engine Ion Engine Propulsion Light Treads Treads Light Treads Leg Aluminum Leg Utility Light Armor Plating Device Improved Terrain Scanner Storage Large Storage Unit Protection Light Armor Plating Weapon Light Cannon Energy Gun Small Laser Ballistic Gun Assault Rifle Ballistic Cannon Light Cannon Launcher Grenade Launcher Build | -11 -10 -10 -10 ------- Run | Yrd Mat Min Sub Slots Evolved . | . . . . Power . | . . . . Propulsion . | . . . . Utility . | . . . . Weapon . | . . . . Parts Attached 17 | 4 6 3 4 Power 2 | . . 1 1 Engine 2 | . . 1 1 Core . | . . . . Reactor . | . . . . Propulsion 4 | 2 . 1 1 Treads 4 | 2 . 1 1 Leg . | . . . . Wheel . | . . . . Hover . | . . . . Flight . | . . . . Utility 5 | 1 3 1 . Device 2 | 1 . 1 . Storage 2 | . 2 . . Processor . | . . . . Hackware . | . . . . Protection 1 | . 1 . . Artifact . | . . . . Weapon 6 | 1 3 . 2 Energy Gun 1 | 1 . . . Energy Cannon . | . . . . Ballistic Gun 2 | . 2 . . Ballistic Cannon 1 | . 1 . . Launcher 2 | . . . 2 Special Weapon . | . . . . Impact Weapon . | . . . . Slashing Weapon . | . . . . Piercing Weapon . | . . . . Special Melee Weapon . | . . . . Unidentified Prototypes . | . . . . Parts Lost 11 | . 1 3 7 Power 2 | . . 1 1 Propulsion 3 | . . 1 2 Utility 2 | . . 1 1 Weapon 4 | . 1 . 3 Highest Loss Streak 7 | . 1 2 7 To Critical Strikes . | . . . . Average Slot Usage (%) 99 | . 100 99 97 Engine 13 | . 14 13 14 Treads 27 | . 28 27 28 Device 3 | . 3 2 13 Storage 14 | . 14 14 14 Protection 10 | . 10 11 . Energy Gun 5 | . 10 . . Ballistic Gun 11 | . 9 14 13 Ballistic Cannon 10 | . 7 14 13 Peak Build Rating 9 | 9 9 8 8 Average Rating 8 | 6 8 7 7 On Entrance 7 | 6 9 8 8 Naked Turns . | . . . . Heaviest Build 33 | 14 33 33 32 Greatest Support 40 | 40 40 40 40 Greatest Overweight (x) . | . . . . Average Overweight (x) . | . . . . Largest Inventory Capacity 15 | 8 15 15 15 Average Capacity 12 | 8 11 15 15 Most Carried 15 | 6 15 15 14 Average Carried 11 | 4 9 14 13 Final Capacity 15 | 8 15 15 15 Final Carried 15 | 2 15 14 10 Class Distribution -------------------- 100% | Mutant Dominant Class ---------------- Mutant | -10/Materials Mutant | -10/Mines Mutant | -10/Subcaves Resources | -11 -10 -10 -10 ----------- Run | Yrd Mat Min Sub Matter Collected 579 | 240 130 209 . Remotely . | . . . . Salvage Created 1297 | 163 785 235 114 Parts 92 | 10 50 20 12 Haulers Intercepted 2 | . 2 . . Recyclers Shooed 1 | 1 . . . Parts Field Recycled . | . . . . Retrieved Matter . | . . . . Parts Self-Destructed 8 | . . . 8 Prevented . | . . . . Kills | -11 -10 -10 -10 ------- Run | Yrd Mat Min Sub Combat Hostiles Destroyed 32 | . 14 13 5 Guns 19 | . 12 7 . Cannons 8 | . . 6 2 AOE 5 | . 2 . 3 Classes Destroyed 8 | 2 5 . 1 Tunneler 4 | 3 1 . . Hauler 2 | . 2 . . Recycler 3 | 1 2 . . Operator 1 | . 1 . . Watcher 2 | . 2 . . Swarmer 17 | . 6 9 2 Grunt 12 | . 8 4 . Subdweller 3 | . . . 3 Best Kill Streak 5 | 2 4 3 5 Combat Bots Only 5 | . 3 3 5 Max Kills in Single Turn 3 | 1 2 1 3 Gunslinging 1 | . 1 . . Exploded 3 | . 2 . 3 Melee . | . . . . Uniques/NPCs Destroyed . | . . . . Combat | -11 -10 -10 -10 -------- Run | Yrd Mat Min Sub Hostile Shots Fired 135 | . 36 47 52 Missed 34 | . 12 9 13 Damage Taken 1351 | . 286 456 609 Core 250 | . 17 43 190 Absorbed by Shields . | . . . . Core Remaining (%) 100 | 100 . . . Volleys Fired 100 | 12 54 28 6 Largest 2 | 2 2 2 2 Hottest 80 | 80 80 55 55 Shots Fired 197 | 24 107 56 10 Gun 155 | 24 99 28 4 Cannon 40 | . 8 28 4 Launcher 2 | . . . 2 Special . | . . . . Kinetic 99 | . 35 56 8 Thermal 57 | 11 46 . . Explosive 2 | . . . 2 Electromagnetic 39 | 13 26 . . Robot Hit Streak 14 | 5 14 7 5 Robot Miss Streak 3 | 3 3 2 3 Penetration Max . | . . . . Secondary Targets 1 | . 1 . . Max Gunslinging Chain 1 | . 1 . . Shots Hit Robots 124 | 13 67 38 6 Core Hits 70 | 5 38 17 10 Critical Kills . | . . . . Critical Parts Destroyed 1 | . 1 . . Critical Strikes 4 | . 2 1 1 Destroy 1 | . 1 . . Blast 2 | . . 1 1 Corrupt 1 | . 1 . . Melee Attacks . | . . . . Impact . | . . . . Slashing . | . . . . Piercing . | . . . . Sneak Attacks . | . . . . Combat Hostiles . | . . . . Follow-up Attacks . | . . . . Damage Inflicted 2213 | 156 874 591 592 Guns 1151 | 156 712 269 14 Cannons 439 | . 55 314 70 Explosions 607 | . 99 . 508 Melee . | . . . . Ramming 16 | . 8 8 . Kinetic 845 | . 178 583 84 Thermal 547 | 64 483 . . Explosive 508 | . . . 508 Electromagnetic 297 | 92 205 . . Impact . | . . . . Slashing . | . . . . Piercing . | . . . . Highest Corruption . | . . . . Average Corruption . | . . . . Corruption Purged . | . . . . Corruption Blocked . | . . . . Overload Shots . | . . . . Overflow Damage . | . . . . Projectiles . | . . . . Explosions . | . . . . Melee . | . . . . Knockbacks 3 | . . 2 1 Impact . | . . . . Kinetic 3 | . . 2 1 Secondary . | . . . . Self-Inflicted Damage 124 | . 45 . 79 Shots 3 | . 1 . 2 Rammed 4 | . 2 2 . Targets Rammed 4 | . 2 2 . Kicked . | . . . . Crushed . | . . . . Highest Temperature 159 | 90 159 64 . Average Temperature 32 | 35 34 25 . Received Heat Transfer 414 | . 84 183 147 Siege Activations . | . . . . Robots Corrupted . | . . . . Combat Hostiles . | . . . . Parts Fried . | . . . . Impact Corruptions . | . . . . Robots Melted . | . . . . Combat Hostiles . | . . . . Parts Melted 1 | . 1 . . Heat Transferred 1200 | 150 1050 . . Parts Sabotaged . | . . . . Parts Stolen . | . . . . Parts Stripped . | . . . . Power Chain Reactions 2 | . 2 . . Alert | -11 -10 -10 -10 ------- Run | Yrd Mat Min Sub Peak Influence 326 | 20 326 162 . Initial 27 | . 13 27 . Average 101 | 10 152 44 . Maximum Alert Level 1 | . 1 . . Low Security (%) 81 | 100 65 100 . Level 1 18 | . 34 . . Level 2 . | . . . . Level 3 . | . . . . Level 4 . | . . . . Level 5 . | . . . . High Security . | . . . . Max Security . | . . . . Squads Dispatched 3 | . 3 . . Investigation 2 | . 2 . . Extermination . | . . . . Reinforcement 1 | . 1 . . Assault . | . . . . Garrison . | . . . . Intercept . | . . . . Searches Triggered . | . . . . Construction Impeded . | . . . . Haulers Reinforced . | . . . . Active Scanning Responses . | . . . . Cargo Convoy Interrupts . | . . . . Stealth | -11 -10 -10 -10 --------- Run | Yrd Mat Min Sub Distress Signals 3 | . 3 . . Communications Jammed . | . . . . Distress Signals . | . . . . Times Spotted 63 | . 29 13 21 Peak Tracking Total 9 | . 3 3 9 Tactical Retreats 2 | . 1 . 1 Traps | -11 -10 -10 -10 ------- Run | Yrd Mat Min Sub Traps Triggered 2 | . 2 . . Indirectly . | . . . . Trap Hack Attempts . | . . . . Triggered . | . . . . Disarmed 5 | . 5 . . Reprogrammed . | . . . . Reused . | . . . . Traps Extracted . | . . . . Installed . | . . . . Triggered . | . . . . Machines | -11 -10 -10 -10 ---------- Run | Yrd Mat Min Sub Machines Disabled 2 | . 2 . . Max in Single Turn 1 | . 1 . . Machines Repaired . | . . . . Machines Dismantled . | . . . . Machines Sabotaged . | . . . . Overloaded Fab Kills . | . . . . Hacking | -11 -10 -10 -10 --------- Run | Yrd Mat Min Sub Machines Accessed 9 | . 9 . . Terminals 7 | . 7 . . Fabricators . | . . . . Repair Stations . | . . . . Recycling Units 2 | . 2 . . Scanalyzers . | . . . . Garrison Access . | . . . . Total Hacks 28 | . 28 . . Successful 16 | . 16 . . Failed 12 | . 12 . . Catastrophic 1 | . 1 . . Database Lockouts . | . . . . Manual 26 | . 26 . . Terminals 21 | . 21 . . Fabricators . | . . . . Repair Stations . | . . . . Recycling Units 7 | . 7 . . Scanalyzers . | . . . . Garrison Access . | . . . . Terminal Hacks 5 | . 5 . . Part Schematic 1 | . 1 . . Robot Analysis 3 | . 3 . . Disarm Traps 1 | . 1 . . Fabricator Hacks . | . . . . Repair Station Hacks . | . . . . Recycling Unit Hacks . | . . . . Scanalyzer . | . . . . Garrison Access Hacks . | . . . . Unauthorized Hacks 11 | . 11 . . Terminals 6 | . 6 . . Botnet 6 | . 6 . . Fabricators . | . . . . Repair Stations . | . . . . Recycling Units 5 | . 5 . . Monitor 1 | . 1 . . Reject 2 | . 2 . . Mask 2 | . 2 . . Scanalyzers . | . . . . Garrison Access . | . . . . Data Cores Recovered . | . . . . Used . | . . . . Hacking Detections 9 | . 9 . . Full Trace Events 2 | . 2 . . Feedback Events . | . . . . Feedback Blocked . | . . . . Robot Schematics Acquired . | . . . . Robots Built . | . . . . Authchips . | . . . . Time . | . . . . Total Robot Build Rating . | . . . . Part Schematics Acquired 1 | . 1 . . Parts Built . | . . . . Authchips . | . . . . Time . | . . . . Total Part Build Rating . | . . . . Parts Repaired . | . . . . Time . | . . . . Parts Recycled . | . . . . Recycled Matter . | . . . . Retrieved Matter . | . . . . Retrieved Components . | . . . . Parts Scanalyzed . | . . . . Part Schematics Acquired . | . . . . Parts Damaged . | . . . . Bothacking | -11 -10 -10 -10 ------------ Run | Yrd Mat Min Sub Used RIF Installer . | . . . . Robots Hacked . | . . . . Non-combat . | . . . . Combat . | . . . . Robot Hacks Applied . | . . . . Relay Couplers Released . | . . . . Fabnet Peak Effective % . | . . . . Robots Rewired . | . . . . Allies Hacked . | . . . . Hacks Repelled . | . . . . Allies | -11 -10 -10 -10 -------- Run | Yrd Mat Min Sub Total Allies . | . . . . Largest Group . | . . . . Highest-Rated Group . | . . . . Highest-Rated Ally . | . . . . Total Orders . | . . . . Ally Attacks . | . . . . Total Damage . | . . . . Kills . | . . . . Allies Corrupted . | . . . . Allies Melted . | . . . . Intel | -11 -10 -10 -10 ------- Run | Yrd Mat Min Sub Robot Analysis Total 3 | . 3 . . Derelict Logs Recovered 1 | . . 1 . Drone Launches . | . . . . Drone Recoveries . | . . . . Exploration | -11 -10 -10 -10 ------------- Run | Yrd Mat Min Sub Turns Passed 3201 | 97 1655 1311 138 Spaces Moved 1675 | 39 815 746 75 Core . | . . . . Treads 1641 | 5 815 746 75 Legs 34 | 34 . . . Wheels . | . . . . Hover . | . . . . Flight . | . . . . Fastest Speed 120 | 120 160 160 160 Average Speed 159 | 125 160 160 160 Slowest Speed 160 | 160 160 160 160 Overloaded Moves . | . . . . Propulsion Burnouts . | . . . . Robots Hopped . | . . . . Cave-ins Triggered . | . . . . Exploration Rate (%) 52 | 3 99 100 8 Regions Visited 3 Branch Regions 2 Pre-discovered Areas . | . . . . Known Exits Taken . | . . . . Unknown Exits Taken 3 | 1 1 1 . Scrap Searched 1 | . . 1 . Spaces Dug . | . . . . Terrain Destroyed 16 | . 12 . 4 Melee . | . . . . Projectile . | . . . . AOE 16 | . 12 . 4 Terrain Rammed . | . . . . Walls Destroyed . | . . . . Machines Disabled . | . . . . Actions | -11 -10 -10 -10 --------- Run | Yrd Mat Min Sub Total 2021 | 64 1065 807 85 Wait 191 | 6 160 25 . Move 1672 | 38 814 745 75 Hop . | . . . . Pick Up 23 | . 20 3 . Fast Attach 1 | 1 . . . Attach 9 | 1 1 3 4 Detach . | . . . . Swap 7 | 2 5 . . Drop 14 | 4 9 1 . Fire 100 | 12 54 28 6 Melee . | . . . . Ram . | . . . . Kick . | . . . . Crush 4 | . 2 2 . Escape Stasis . | . . . . Rewire . | . . . . Trap . | . . . . Miscellaneous . | . . . . Route ------- -11/Scrapyard -10/Materials (discovered 4 exits: [*Mat x3] / [*Min]) -10/Mines (discovered 4 exits: [*Mat x2] / [*Exi] / [*Sub]) -10/Subcaves History --------- Turn | Location | Event 1 | -11/Scrapyard | Discovered new exit (range 3) 98 | -11/Scrapyard | Entered Materials 302 | -10/Materials | Build established: Mutant 491 | -10/Materials | Discovered new exit (range 15) 882 | -10/Materials | Discovered new exit (range 16) 1016 | -10/Materials | Discovered new exit (range 15) 1708 | -10/Materials | Discovered new exit (range 7) 1753 | -10/Materials | Entered Mines 1824 | -10/Mines | Deemed a non-threat by the Exiles lab entrance 1824 | -10/Mines | Discovered new exit (range 5) 2156 | -10/Mines | Learned 4 Materials zone layouts 2164 | -10/Mines | Discovered new exit (range 6) 2338 | -10/Mines | Discovered new exit (range 16) 3045 | -10/Mines | Discovered new exit (range 13) 3064 | -10/Mines | Entered Subcaves 3190 | -10/Subcaves | Ambushed by swarm of Subdwellers 3192 | -10/Subcaves | Ambushed by Subdwellers from Twisted Machinery 3192 | -10/Subcaves | Ambushed by Subdwellers from Twisted Machinery 3196 | -10/Subcaves | Core integrity fell below 50% 3199 | -10/Subcaves | Ambushed by Subdwellers from Twisted Machinery 3202 | -10/Subcaves | Core integrity fell below 20% 3202 | -10/Subcaves | Destroyed self with Grenade Launcher Last Messages --------------- 03195_ F0-UP9(R) suffers critical hit (Burn). 03195_ Assault Rifle destroyed. 03196_ 0D-5U0(R) emerges from the Twisted Machinery. 03196_ 0D-5U0(R) suffers critical hit (Destroy). 03196_ 0D-5U0(R) destroyed. 03197_ F0-UP9(R) destroyed. 03197_ Lgt. Cannon destroyed. 03197_ Ion Engine destroyed. 03198_ Subatomizers dissect the Sub. Power Source. 03199_ 5X-010(R) suffers critical hit (Destroy). 03199_ 5X-010(R) knocked back. 03199_ RN-P8U(R) angrily emerges from the Twisted Machinery. 03200_ Flight Unit fries itself beyond repair. 03200_ JY-MB8(R) suffers critical hit (Burn). 03201_ Lgt. Treads destroyed. 03201_ Grenade Launcher destroyed. 03202_ Lgt. Assault Rifle fries itself beyond repair. 03202_ JY-MB8(R) destroyed. 03202_ VL-GGK(R) destroyed. 03202_ TE-W61(R) destroyed. Map ----- +----------------------------------------------------+ | ??????????# ???# ## #???????????????? | | ??????????# ???# ### ####???????????????? | | ??????????#% ### ????## ### #??????????????????? | | ??????????###??# ?????#### #??????????????????? | | ???????????????# ????????# ##?????????????????? | | ??????????????? ??????????## #?????????????????? | | ???????????????????????????# ##????????????????? | | ???????????????????????????# ###??????????????? | | ???????????????????????????# ##?????????????? | | ???????????????????????????# #?????????????? | | ?????????????????#???????##; ##?????????????? | | ?????????????????# #### ###??????????????? | | ?????????????????# ;#???????????????? | | ?????????????????# ;##??????????????? | | ?????????????????#### # # ;%= #??????????????? | | ????????????????????##?#?#; g #??????????????? | | ????????????????????????#; ;#??????????????? | | ????????????????????????# ;#???????????????? | | ????????????????????????# #????????????????? | | ???????????????????????## g g #????????????????? | | ??????????????????????## #????????????????? | | ??????????????????????# %]%*& #????????????????? | | ??????????????????????# =%h% =#????????????????? | | ????????????????????### |&=% ##????????????????? | | ????????????????????# RRR&&#??????????????????? | | ????????????????????#% *@&%&#??????????????????? | | ????????????????????# R&#]##??????????????????? | | ????????????????? %% ##?????????????????????? | | ?????????????? % #???????????????????????? | | ???????????"t %* % ????????????????????????? | | ???????????? ##% ?????????????????????????? | | ???????????? ??# ?????????????????????????? | | ????????????"?????# ??????????????????????????? | | ?????????????????? ??????????????????????????? | | ????????????????? ???????????????????????????? | | ???????????????? ???????????????????????????? | | ??????????????? ????????????????????????????? | | ???????????????? #????????????????????????????? | | ????????????????????????????????????????????????? | | ????????????????????????????????????????????????? | | ????????????????????????????????????????????????? | | ????????????????????????????????????????????????? | | ????????????????????????????????????????????????? | | ????????????????????????????????????????????????? | | ????????????????????????????????????????????????? | | ????????????????????????????????????????????????? | | ????????????????????????????????????????????????? | | ????????????????????????????????????????????????? | | ????????????????????????????????????????????????? | | ????????????????????????????????????????????????? | +----------------------------------------------------+ Best States ------------- Heat Dissipation 25 Energy Generation 10 Energy Capacity 250 Matter Stores 300 Matter Capacity 300 Sight Range 16 Terrain Scan Range 16 Terrain Scan Density 10 ECM Strength 1 Armor Coverage 150 Evasion (%) 55 Recoil Reduction 2 Item Schematics ----------------- Huge Storage Unit | -10/Materials | Hacked Robot Schematics ------------------ None Fabricated ------------ Nothing Alien Tech Used ----------------- None Achievements -------------- None Challenges ------------ None Game ------ Seed TiamatDynamicMultitool Manual? 0 Play Time 00:18:35 Cumulative 107.6 hours Start 2024.09.18 @ 13:09:57 End 2024.09.18 @ 13:27:10 Sessions 1 Manual Loads 0 Difficulty Rogue Special Mode None Game No. 146 Rogue 146 Adventurer 0 Explorer 0 Win Type - Total 1 Types 1/0/0/0/0/0/0/0/0 Lore% 22 Gallery% 56 Achievement% 44 Wizard Run 0 Options --------- Layout 0 ASCII 0 Keyboard 0 Movement Mouse Keybinds 1 Fullscreen 1 Font 18/TerminusBold Map View 76x50 Zoom Use 0% Tactical HUD 1 Map Filters NONE Filters NONE Steam 1 RUN: 98b88131-dd3d-42f1-a264-f23d8bb50c20